[Event "Niedersachsen-ch B 2024"]
[Site "Verden Aller"]
[Date "2024.01.04"]
[Round "1.1"]
[White "Pfuhl, Lars"]
[Black "Schoettker, Jochen"]
[Result "0-1"]
[ECO "A21"]
[WhiteElo "1530"]
[BlackElo "1875"]
[Annotator "NA RC"]
[PlyCount "46"]
[EventDate "2024.01.01"]
[EventType "swiss"]
[EventCountry "GER"]
[SourceTitle "playchess.com"]
[Source "ChessBase"]
[SourceQuality "1"]
[TimeControl "40/5400+30:1800+30"]

1. c4 {[%emt 0:00:04]} f5 {[%emt 0:00:15]} 2. g3 {[%emt 0:00:16]} Nf6 {[%emt 0:00:25]} 3. Bg2 {[%emt 0:00:15]} d6 {[%emt 0:00:20]} 4. Nc3 {[%emt 0:00:46]} e5 {[%emt 0:01:51]} 5. d3 {[%emt 0:01:32]} c6 {[%emt 0:02:10]} 6. f4 {[%emt 0:03:32]} g6 {[%emt 0:03:33]} 7. fxe5 {[%emt 0:05:23]} dxe5 {[%emt 0:00:34]} 8. Nf3 {[%emt 0:03:46]} Nbd7 {[%emt 0:01:15]} 9. Bg5 {[%emt 0:07:22]} h6 {[%emt 0:03:32]} 10. Bxf6 {[%emt 0:02:16]} Qxf6 {[%emt 0:04:14]} 11. a3 {[%emt 0:04:48]} Bg7 {[%emt 0:01:59]} 12. Rb1 {[%emt 0:01:34]} a5 {[%emt 0:01:14]} 13. O-O {[%emt 0:02:03]} O-O {[%emt 0:00:43]} 14. Nd2 {[%emt 0:04:17]} Qd6 {[%emt 0:04:35]} 15. Kh1 {[%emt 0:06:32]} Nf6 {[%emt 0:01:40]} 16. Qc2 {[%emt 0:04:57]} Be6 {[%emt 0:11:41]} 17. b4 {[%emt 0:06:04]} axb4 {[%emt 0:01:10]} 18. Rxb4 {[%emt 0:01:42]} Ng4 {[%emt 0:03:54]} 19. Rf3 {[%emt 0:03:35]} Qd4 {[%emt 0:01:24]} 20. h3 {[%emt 0:03:22]} Ne3 {[%emt 0:01:44]} 21. Rxe3 {[%emt 0:04:53]} Qxe3 {[%emt 0:00:20]} 22. Nf1 {[%emt 0:02:48]} Qa7 {[%emt 0:00:49]} 23. Na4 {[%emt 0:04:26]} c5 {[%emt 0:06:38]} 0-1

[Event "Niedersachsen-ch B 2024"]
[Site "Verden Aller"]
[Date "2024.01.04"]
[Round "1.2"]
[White "Kraeuter, Paavo Alexander"]
[Black "Pfeifer, Frank"]
[Result "0-1"]
[ECO "A59"]
[WhiteElo "1832"]
[BlackElo "1529"]
[Annotator "NA RC"]
[PlyCount "60"]
[EventDate "2024.01.01"]
[EventType "swiss"]
[EventCountry "GER"]
[SourceTitle "playchess.com"]
[Source "ChessBase"]
[SourceQuality "1"]
[TimeControl "40/5400+30:1800+30"]

1. d4 {[%emt 0:00:03]} Nf6 {[%emt 0:00:02]} 2. c4 {[%emt 0:00:07]} c5 {[%emt 0:00:20]} 3. d5 {[%emt 0:00:05]} b5 {[%emt 0:00:23]} 4. cxb5 {[%emt 0:00:02]} a6 {[%emt 0:00:26]} 5. bxa6 {[%emt 0:00:06]} Bxa6 {[%emt 0:00:12]} 6. Nc3 {[%emt 0:00:05]} d6 {[%emt 0:00:39]} 7. e4 {[%emt 0:00:07]} Bxf1 {[%emt 0:00:23]} 8. Kxf1 {[%emt 0:00:03]} Nbd7 {[%emt 0:00:26]} 9. Nf3 {[%emt 0:00:06]} g6 {[%emt 0:00:47]} 10. g3 {[%emt 0:00:25]} Bg7 {[%emt 0:00:28]} 11. Kg2 {[%emt 0:00:02]} O-O {[%emt 0:00:40]} 12. a4 {[%emt 0:00:03]} Qa5 {[%emt 0:06:55]} 13. Bd2 {[%emt 0:02:43]} Qb6 {[%emt 0:08:47]} 14. Qc2 {[%emt 0:01:15]} Ng4 {[%emt 0:02:01]} 15. Bg5 {[%emt 0:04:18]} Rfe8 {[%emt 0:06:11]} 16. h3 {[%emt 0:02:05]} Nge5 {[%emt 0:01:15]} 17. Nd2 {[%emt 0:00:46]} h6 {[%emt 0:02:29]} 18. Be3 {[%emt 0:00:19]} g5 {[%emt 0:02:10]} 19. f4 {[%emt 0:05:40]} gxf4 {[%emt 0:00:38]} 20. gxf4 {[%emt 0:00:18]} Ng6 {[%emt 0:01:10]} 21. h4 {[%emt 0:04:17]} Bd4 {[%emt 0:00:38]} 22. h5 {[%emt 0:13:20]} Bxe3 {[%emt 0:03:03]} 23. hxg6 {[%emt 0:00:19]} Bxf4 {[%emt 0:00:29]} 24. gxf7+ {[%emt 0:00:21]} Kxf7 {[%emt 0:00:19]} 25. Rhf1 {[%emt 0:02:55]} Rg8+ {[%emt 0:00:51]} 26. Kh3 {[%emt 0:06:50]} Rg3+ {[%emt 0:03:26]} 27. Kh4 {[%emt 0:00:09]} Rag8 {[%emt 0:00:57]} 28. Rxf4+ {[%emt 0:00:25]} Ke8 {[%emt 0:00:11]} 29. Qb3 {[%emt 0:07:13]} Qd8 {[%emt 0:01:00]} 30. Kh5 {[%emt 0:04:59]} e5 {[%emt 0:58:14]} 0-1

[Event "Niedersachsen-ch B 2024"]
[Site "Verden Aller"]
[Date "2024.01.04"]
[Round "1.3"]
[White "Bangert, Jonas"]
[Black "Woellermann, Ludger"]
[Result "1/2-1/2"]
[ECO "E63"]
[WhiteElo "1527"]
[BlackElo "1829"]
[Annotator "NA RC"]
[PlyCount "57"]
[EventDate "2024.01.01"]
[EventType "swiss"]
[EventCountry "GER"]
[SourceTitle "playchess.com"]
[Source "ChessBase"]
[SourceQuality "1"]
[TimeControl "40/5400+30:1800+30"]

1. d4 {[%emt 0:00:02]} Nf6 {[%emt 0:00:18]} 2. Nf3 {[%emt 0:00:14]} g6 {[%emt 0:00:18]} 3. g3 {[%emt 0:00:51]} Bg7 {[%emt 0:00:27]} 4. Bg2 {[%emt 0:00:35]} d6 {[%emt 0:02:01]} 5. O-O {[%emt 0:01:24]} O-O {[%emt 0:00:37]} 6. c4 {[%emt 0:06:45]} Nc6 {[%emt 0:02:50]} 7. Nc3 {[%emt 0:00:17]} a6 {[%emt 0:02:16]} 8. h3 {[%emt 0:04:35]} Rb8 {[%emt 0:02:07]} 9. a4 {[%emt 0:22:06]} Na5 {[%emt 1:24:06]} 10. Qd3 {[%emt 0:08:28]} Nb3 {[%emt 0:00:00]} 11. Rb1 {[%emt 0:01:29]} Nxc1 {[%emt 0:00:00]} 12. Rfxc1 {[%emt 0:01:57]} Bh6 {[%emt 0:00:00]} 13. Re1 {[%emt 0:06:17]} c6 {[%emt 0:00:00]} 14. g4 {[%emt 0:06:47]} Bg7 {[%emt 0:00:00]} 15. b4 {[%emt 0:08:19]} h5 {[%emt 0:00:00]} 16. gxh5 {[%emt 0:06:06]} Nxh5 {[%emt 0:00:00]} 17. e3 {[%emt 0:03:36]} Bf5 {[%emt 0:00:00]} 18. e4 {[%emt 0:00:10]} Nf4 {[%emt 0:00:00]} 19. Qd2 {[%emt 0:03:07]} Nxg2 {[%emt 0:00:00]} 20. Kxg2 {[%emt 0:00:14]} Be6 {[%emt 0:00:00]} 21. c5 {[%emt 0:04:19]} dxc5 {[%emt 0:00:00]} 22. bxc5 {[%emt 0:00:05]} Qd7 {[%emt 0:00:00]} 23. Rh1 {[%emt 0:01:26]} Rfd8 {[%emt 0:00:00]} 24. Rbd1 {[%emt 0:03:14]} Bb3 {[%emt 0:00:00]} 25. Rb1 {[%emt 0:00:05]} Bc4 {[%emt 0:00:00]} 26. Rb4 {[%emt 0:01:10]} Be6 {[%emt 0:00:00]} 27. a5 {[%emt 0:00:22]} Qc7 {[%emt 0:00:00]} 28. Ra4 {[%emt 0:02:33]} Bb3 {[%emt 0:00:00]} 29. Rb4 {[%emt 0:00:12]} 1/2-1/2

[Event "Niedersachsen-ch B 2024"]
[Site "Verden Aller"]
[Date "2024.01.04"]
[Round "1.4"]
[White "Rossberg, Jonathan"]
[Black "Bartel, Reinhard"]
[Result "1-0"]
[ECO "C24"]
[WhiteElo "1818"]
[BlackElo "1525"]
[Annotator "NA RC"]
[PlyCount "39"]
[EventDate "2024.01.01"]
[EventType "swiss"]
[EventCountry "GER"]
[SourceTitle "playchess.com"]
[Source "ChessBase"]
[SourceQuality "1"]
[TimeControl "40/5400+30:1800+30"]

1. e4 {[%emt 0:00:03]} e5 {[%emt 0:00:15]} 2. Bc4 {[%emt 0:00:09]} Nf6 {[%emt 0:00:20]} 3. d4 {[%emt 0:00:29]} Nxe4 {[%emt 0:05:55]} 4. dxe5 {[%emt 0:03:13]} d5 {[%emt 0:14:18]} 5. Bxd5 {[%emt 0:07:20]} Bf5 {[%emt 0:04:41]} 6. Bxf7+ {[%emt 0:07:24]} Ke7 {[%emt 0:00:23]} 7. Qxd8+ {[%emt 0:02:12]} Kxd8 {[%emt 0:00:09]} 8. Nf3 {[%emt 0:01:40]} Bc5 {[%emt 0:05:00]} 9. O-O {[%emt 0:03:05]} Nxf2 {[%emt 0:04:59]} 10. Bg5+ {[%emt 0:01:26]} Kd7 {[%emt 0:00:35]} 11. Rxf2 {[%emt 0:01:32]} Rf8 {[%emt 0:03:52]} 12. Bb3 {[%emt 0:04:21]} h6 {[%emt 0:00:24]} 13. Bh4 {[%emt 0:05:34]} g5 {[%emt 0:00:27]} 14. Bg3 {[%emt 0:00:09]} Nc6 {[%emt 0:06:52]} 15. Nc3 {[%emt 0:04:38]} Rae8 {[%emt 0:03:17]} 16. Kh1 {[%emt 0:19:12]} Bxf2 {[%emt 0:00:38]} 17. Bxf2 {[%emt 0:00:08]} Nxe5 {[%emt 0:07:21]} 18. Nxe5+ {[%emt 0:02:01]} Rxe5 {[%emt 0:00:11]} 19. Rd1+ {[%emt 0:00:45]} Kc8 {[%emt 0:00:29]} 20. Bd4 {[%emt 0:00:37]} 1-0

[Event "Niedersachsen-ch B 2024"]
[Site "Verden Aller"]
[Date "2024.01.04"]
[Round "1.5"]
[White "Grunwald, Hannes Leon"]
[Black "Krneta, Slavko"]
[Result "0-1"]
[ECO "C01"]
[WhiteElo "1517"]
[BlackElo "1767"]
[Annotator "NA RC"]
[PlyCount "102"]
[EventDate "2024.01.01"]
[EventType "swiss"]
[EventCountry "GER"]
[SourceTitle "playchess.com"]
[Source "ChessBase"]
[SourceQuality "1"]
[TimeControl "40/5400+30:1800+30"]

1. e4 {[%emt 0:00:05]} e6 {[%emt 0:00:15]} 2. d4 {[%emt 0:00:11]} d5 {[%emt 0:00:08]} 3. exd5 {[%emt 0:00:33]} exd5 {[%emt 0:00:16]} 4. Nf3 {[%emt 0:00:22]} Bf5 {[%emt 0:02:13]} 5. Bf4 {[%emt 0:01:28]} Be7 {[%emt 0:03:33]} 6. Bd3 {[%emt 0:01:41]} Bg6 {[%emt 0:00:55]} 7. O-O {[%emt 0:02:09]} Nf6 {[%emt 0:00:46]} 8. Re1 {[%emt 0:00:51]} O-O {[%emt 0:00:35]} 9. Nc3 {[%emt 0:04:22]} c6 {[%emt 0:01:30]} 10. Qd2 {[%emt 0:09:20]} Bb4 {[%emt 0:04:07]} 11. Bg5 {[%emt 0:03:59]} Nbd7 {[%emt 0:00:21]} 12. a3 {[%emt 0:09:04]} Bd6 {[%emt 0:00:10]} 13. Ne5 {[%emt 0:04:13]} Qc7 {[%emt 0:02:05]} 14. f4 {[%emt 0:10:57]} Bxd3 {[%emt 0:04:36]} 15. Nxd3 {[%emt 0:05:01]} Rfe8 {[%emt 0:02:32]} 16. Rxe8+ {[%emt 0:03:11]} Rxe8 {[%emt 0:00:03]} 17. Nf2 {[%emt 0:09:58]} h6 {[%emt 0:00:34]} 18. Bxf6 {[%emt 0:01:41]} Nxf6 {[%emt 0:00:10]} 19. g3 {[%emt 0:00:20]} Ne4 {[%emt 0:01:05]} 20. Nfxe4 {[%emt 0:01:12]} dxe4 {[%emt 0:00:25]} 21. Re1 {[%emt 0:00:12]} f5 {[%emt 0:00:11]} 22. d5 {[%emt 0:00:21]} Bc5+ {[%emt 0:04:45]} 23. Kg2 {[%emt 0:00:51]} Rd8 {[%emt 0:02:22]} 24. b4 {[%emt 0:03:21]} Be7 {[%emt 0:03:31]} 25. Rd1 {[%emt 0:01:57]} Qd6 {[%emt 0:02:02]} 26. Qe3 {[%emt 0:06:57]} c5 {[%emt 0:05:21]} 27. bxc5 {[%emt 0:03:28]} Qxc5 {[%emt 0:00:12]} 28. Qxc5 {[%emt 0:00:12]} Bxc5 {[%emt 0:00:09]} 29. a4 {[%emt 0:01:31]} a6 {[%emt 0:00:43]} 30. Ne2 {[%emt 0:01:27]} b5 {[%emt 0:01:17]} 31. axb5 {[%emt 0:00:21]} axb5 {[%emt 0:00:01]} 32. Nc3 {[%emt 0:00:47]} b4 {[%emt 0:03:47]} 33. Na4 {[%emt 0:01:44]} Bf8 {[%emt 0:02:03]} 34. Nb6 {[%emt 0:04:51]} Rb8 {[%emt 0:00:31]} 35. Nd7 {[%emt 0:01:10]} Rc8 {[%emt 0:00:15]} 36. Rd2 {[%emt 0:00:29]} Bd6 {[%emt 0:02:13]} 37. Nb6 {[%emt 0:02:26]} Rc3 {[%emt 0:00:27]} 38. Na4 {[%emt 0:01:40]} Rc7 {[%emt 0:00:17]} 39. Kf1 {[%emt 0:01:34]} Kf7 {[%emt 0:03:38]} 40. Ke2 {[%emt 0:00:07]} g5 {[%emt 0:00:51]} 41. fxg5 {[%emt 0:34:21]} hxg5 {[%emt 0:31:01]} 42. Kd1 {[%emt 0:00:00]} Kf6 {[%emt 0:00:00]} 43. Nb2 {[%emt 0:00:00]} Ke5 {[%emt 0:00:00]} 44. Na4 {[%emt 0:00:00]} f4 {[%emt 0:00:00]} 45. gxf4+ {[%emt 0:00:00]} gxf4 {[%emt 0:00:00]} 46. Ke2 {[%emt 0:00:00]} Ra7 {[%emt 0:00:00]} 47. Nb2 {[%emt 0:00:00]} f3+ {[%emt 0:00:00]} 48. Kf1 {[%emt 0:00:00]} Kf4 {[%emt 0:00:00]} 49. Nd1 {[%emt 0:00:00]} Bc5 {[%emt 0:00:00]} 50. d6 {[%emt 0:00:00]} Rd7 {[%emt 0:00:00]} 51. Nf2 {[%emt 0:00:00]} Bxf2 {[%emt 0:00:00]} 0-1

[Event "Niedersachsen-ch B 2024"]
[Site "Verden Aller"]
[Date "2024.01.04"]
[Round "1.6"]
[White "Schlaetker, Christine"]
[Black "Oblender, Rudi"]
[Result "1-0"]
[ECO "C62"]
[WhiteElo "1745"]
[BlackElo "1511"]
[Annotator "NA RC"]
[PlyCount "55"]
[EventDate "2024.01.01"]
[EventType "swiss"]
[EventCountry "GER"]
[SourceTitle "playchess.com"]
[Source "ChessBase"]
[SourceQuality "1"]
[TimeControl "40/5400+30:1800+30"]

1. e4 {[%emt 0:00:02]} e5 {[%emt 0:00:07]} 2. Nf3 {[%emt 0:00:09]} Nc6 {[%emt 0:00:06]} 3. Bb5 {[%emt 0:00:05]} Nf6 {[%emt 0:00:20]} 4. d3 {[%emt 0:01:37]} d6 {[%emt 0:02:02]} 5. h3 {[%emt 0:00:37]} g6 {[%emt 0:03:20]} 6. O-O {[%emt 0:01:59]} Bg7 {[%emt 0:01:08]} 7. c3 {[%emt 0:00:28]} O-O {[%emt 0:00:15]} 8. Re1 {[%emt 0:00:40]} Re8 {[%emt 0:12:40]} 9. Nbd2 {[%emt 0:02:29]} Bd7 {[%emt 0:04:57]} 10. b4 {[%emt 0:03:43]} Ne7 {[%emt 0:00:07]} 11. Bc4 {[%emt 0:03:10]} Be6 {[%emt 0:08:01]} 12. Qb3 {[%emt 0:06:29]} Qd7 {[%emt 0:04:13]} 13. Ng5 {[%emt 0:06:15]} Bxc4 {[%emt 0:02:09]} 14. Nxc4 {[%emt 0:00:09]} b5 {[%emt 0:01:44]} 15. Nxe5 {[%emt 0:06:57]} dxe5 {[%emt 0:02:00]} 16. Qxf7+ {[%emt 0:04:47]} Kh8 {[%emt 0:00:10]} 17. Ne6 {[%emt 0:02:38]} Rg8 {[%emt 0:06:04]} 18. Nxg7 {[%emt 0:00:48]} Rxg7 {[%emt 0:00:13]} 19. Qxf6 {[%emt 0:00:17]} Kg8 {[%emt 0:00:29]} 20. Bh6 {[%emt 0:01:49]} Rf7 {[%emt 0:00:15]} 21. Qxe5 {[%emt 0:00:28]} Qxd3 {[%emt 0:00:40]} 22. Rad1 {[%emt 0:00:26]} Qc4 {[%emt 0:01:08]} 23. Rd2 {[%emt 0:03:28]} Rc8 {[%emt 0:04:34]} 24. Red1 {[%emt 0:00:32]} Nc6 {[%emt 0:00:44]} 25. Rd8+ {[%emt 0:03:23]} Rxd8 {[%emt 0:00:16]} 26. Rxd8+ {[%emt 0:00:09]} Nxd8 {[%emt 0:00:02]} 27. Qe8+ {[%emt 0:00:17]} Rf8 {[%emt 0:00:01]} 28. Qxf8# {[%emt 0:00:10]} 1-0

[Event "Niedersachsen-ch B 2024"]
[Site "Verden Aller"]
[Date "2024.01.04"]
[Round "1.7"]
[White "Tenninger, Joerg"]
[Black "Walther, Jonas"]
[Result "0-1"]
[ECO "D60"]
[WhiteElo "1508"]
[BlackElo "1744"]
[Annotator "NA RC"]
[PlyCount "52"]
[EventDate "2024.01.01"]
[EventType "swiss"]
[EventCountry "GER"]
[SourceTitle "playchess.com"]
[Source "ChessBase"]
[SourceQuality "1"]
[TimeControl "40/5400+30:1800+30"]

1. d4 {[%emt 0:00:05]} Nf6 {[%emt 0:00:12]} 2. c4 {[%emt 0:00:10]} e6 {[%emt 0:00:58]} 3. Nc3 {[%emt 0:00:25]} d5 {[%emt 0:01:01]} 4. Bg5 {[%emt 0:00:40]} c6 {[%emt 0:00:24]} 5. e3 {[%emt 0:00:40]} Be7 {[%emt 0:00:41]} 6. Nf3 {[%emt 0:00:44]} O-O {[%emt 0:00:13]} 7. Bd3 {[%emt 0:00:24]} Nbd7 {[%emt 0:01:04]} 8. O-O {[%emt 0:01:54]} Qc7 {[%emt 0:09:26]} 9. Qc2 {[%emt 0:02:34]} Re8 {[%emt 0:01:52]} 10. Bf4 {[%emt 0:02:29]} Bd6 {[%emt 0:01:57]} 11. Bxd6 {[%emt 0:02:00]} Qxd6 {[%emt 0:00:03]} 12. Rac1 {[%emt 0:02:27]} h6 {[%emt 0:06:53]} 13. a3 {[%emt 0:04:51]} Qe7 {[%emt 0:26:50]} 14. c5 {[%emt 0:01:44]} e5 {[%emt 0:00:41]} 15. dxe5 {[%emt 0:07:45]} Nxe5 {[%emt 0:04:06]} 16. Nxe5 {[%emt 0:16:02]} Qxe5 {[%emt 0:00:08]} 17. Rfe1 {[%emt 0:03:11]} Ng4 {[%emt 0:02:50]} 18. g3 {[%emt 0:05:43]} Qh5 {[%emt 0:01:54]} 19. h4 {[%emt 0:01:48]} Ne5 {[%emt 0:01:54]} 20. Be2 {[%emt 0:01:02]} Bg4 {[%emt 0:03:28]} 21. Rf1 {[%emt 0:02:47]} Re6 {[%emt 0:08:25]} 22. Rcd1 {[%emt 0:04:26]} Rg6 {[%emt 0:09:17]} 23. Kh2 {[%emt 0:05:12]} Bxe2 {[%emt 0:04:46]} 24. Qxe2 {[%emt 0:03:04]} Nf3+ {[%emt 0:00:13]} 25. Kh1 {[%emt 0:00:44]} Qf5 {[%emt 0:03:52]} 26. Kg2 {[%emt 0:03:42]} Nxh4+ {[%emt 0:00:04]} 0-1

[Event "Niedersachsen-ch B 2024"]
[Site "Verden Aller"]
[Date "2024.01.04"]
[Round "1.8"]
[White "Kewe, Stefan"]
[Black "Golke, Philipp"]
[Result "1/2-1/2"]
[ECO "E08"]
[WhiteElo "1737"]
[BlackElo "1490"]
[Annotator "NA RC"]
[PlyCount "136"]
[EventDate "2024.01.01"]
[EventType "swiss"]
[EventCountry "GER"]
[SourceTitle "playchess.com"]
[Source "ChessBase"]
[SourceQuality "1"]
[TimeControl "40/5400+30:1800+30"]

1. d4 {[%emt 0:00:03]} d5 {[%emt 0:00:15]} 2. Nf3 {[%emt 0:00:08]} e6 {[%emt 0:00:06]} 3. c4 {[%emt 0:00:10]} Nf6 {[%emt 0:00:11]} 4. g3 {[%emt 0:00:17]} c6 {[%emt 0:00:15]} 5. Bg2 {[%emt 0:00:19]} Be7 {[%emt 0:00:12]} 6. O-O {[%emt 1:32:33]} O-O {[%emt 1:32:31]} 7. Nc3 {[%emt 0:00:00]} Nbd7 {[%emt 0:00:00]} 8. b3 {[%emt 0:00:00]} b6 {[%emt 0:00:00]} 9. Qc2 {[%emt 0:00:00]} Bb7 {[%emt 0:00:00]} 10. Bg5 {[%emt 0:00:00]} h6 {[%emt 0:00:00]} 11. Bf4 {[%emt 0:00:00]} Rc8 {[%emt 0:00:00]} 12. Ne5 {[%emt 0:00:00]} Nxe5 {[%emt 0:00:00]} 13. dxe5 {[%emt 0:00:00]} Nd7 {[%emt 0:00:00]} 14. cxd5 {[%emt 0:00:00]} cxd5 {[%emt 0:00:00]} 15. Qb2 {[%emt 0:00:00]} a6 {[%emt 0:00:00]} 16. Rac1 {[%emt 0:00:00]} Bc5 {[%emt 0:00:00]} 17. Na4 {[%emt 0:00:00]} Qe7 {[%emt 0:00:00]} 18. Nxc5 {[%emt 0:00:00]} bxc5 {[%emt 0:00:00]} 19. Bd2 {[%emt 0:00:00]} Nb8 {[%emt 0:00:00]} 20. f4 {[%emt 0:00:00]} Nc6 {[%emt 0:00:00]} 21. Be3 {[%emt 0:00:00]} d4 {[%emt 0:00:00]} 22. Bf2 {[%emt 0:00:00]} Nb4 {[%emt 0:00:00]} 23. Bxb7 {[%emt 0:00:00]} Qxb7 {[%emt 0:00:00]} 24. Rc4 {[%emt 0:00:00]} Rfd8 {[%emt 0:00:00]} 25. Rfc1 {[%emt 0:00:00]} d3 {[%emt 0:00:00]} 26. Bxc5 {[%emt 0:00:00]} dxe2 {[%emt 0:00:00]} 27. Qxe2 {[%emt 0:00:00]} Nd3 {[%emt 0:00:00]} 28. R1c3 {[%emt 0:00:00]} Nxc5 {[%emt 0:00:00]} 29. Rxc5 {[%emt 0:00:00]} Qb6 {[%emt 0:00:00]} 30. Qf2 {[%emt 0:00:00]} Rxc5 {[%emt 0:00:00]} 31. Rxc5 {[%emt 0:00:00]} Qb7 {[%emt 0:00:00]} 32. Rc1 {[%emt 0:00:00]} Qb4 {[%emt 0:00:00]} 33. Re1 {[%emt 0:00:00]} Qd2 {[%emt 0:00:55]} 34. Qxd2 {[%emt 0:00:00]} Rxd2 {[%emt 0:00:06]} 35. a4 {[%emt 0:00:00]} Rb2 {[%emt 0:00:06]} 36. Re3 {[%emt 0:00:00]} g5 {[%emt 0:00:47]} 37. Rd3 {[%emt 0:00:00]} g4 {[%emt 0:00:33]} 38. Rd6 {[%emt 0:00:00]} Rb1+ {[%emt 0:01:02]} 39. Kf2 {[%emt 0:00:00]} Rb2+ {[%emt 0:00:10]} 40. Ke1 {[%emt 0:00:00]} Rxb3 {[%emt 0:01:50]} 41. Rxa6 {[%emt 0:25:29]} Rb2 {[%emt 0:30:48]} 42. f5 {[%emt 0:02:59]} exf5 {[%emt 0:00:34]} 43. Rxh6 {[%emt 0:01:07]} Kg7 {[%emt 0:02:09]} 44. Rf6 {[%emt 0:04:05]} Ra2 {[%emt 0:00:56]} 45. Rxf5 {[%emt 0:00:30]} Rxa4 {[%emt 0:00:12]} 46. Rf4 {[%emt 0:02:30]} Ra1+ {[%emt 0:00:17]} 47. Kf2 {[%emt 0:00:49]} Ra2+ {[%emt 0:00:05]} 48. Ke3 {[%emt 0:00:43]} Rxh2 {[%emt 0:00:08]} 49. Rxg4+ {[%emt 0:00:03]} Kf8 {[%emt 0:00:10]} 50. Kf4 {[%emt 0:01:51]} Ra2 {[%emt 0:00:33]} 51. Kf5 {[%emt 0:00:12]} Ra6 {[%emt 0:01:34]} 52. Rb4 {[%emt 0:01:21]} Kg7 {[%emt 0:10:05]} 53. Rd4 {[%emt 0:00:35]} Ra3 {[%emt 0:00:00]} 54. g4 {[%emt 0:00:08]} Ra1 {[%emt 0:00:00]} 55. Rd7 {[%emt 0:06:46]} Rf1+ {[%emt 0:00:00]} 56. Kg5 {[%emt 0:00:07]} Re1 {[%emt 0:00:00]} 57. Rd5 {[%emt 0:02:08]} Re2 {[%emt 0:00:00]} 58. Kf5 {[%emt 0:01:35]} Rf2+ {[%emt 0:00:00]} 59. Ke4 {[%emt 0:00:42]} Rg2 {[%emt 0:00:00]} 60. Kf3 {[%emt 0:00:21]} Rg1 {[%emt 0:00:00]} 61. Rd4 {[%emt 0:00:22]} Re1 {[%emt 0:00:00]} 62. Re4 {[%emt 0:00:11]} Ra1 {[%emt 0:00:00]} 63. Kf4 {[%emt 0:01:30]} Rf1+ {[%emt 0:00:00]} 64. Kg5 {[%emt 0:00:06]} Ra1 {[%emt 0:00:00]} 65. Rf4 {[%emt 0:00:10]} Re1 {[%emt 0:00:00]} 66. Kf5 {[%emt 0:01:27]} Re2 {[%emt 0:00:00]} 67. g5 {[%emt 0:00:41]} Rg2 {[%emt 0:00:00]} 68. Rf3 {[%emt 0:00:00]} Rg1 {[%emt 0:00:00]} 1/2-1/2

[Event "Niedersachsen-ch B 2024"]
[Site "Verden Aller"]
[Date "2024.01.04"]
[Round "1.9"]
[White "ter Stal, Esther"]
[Black "Schumacher, Klaus"]
[Result "1-0"]
[ECO "D06"]
[WhiteElo "1486"]
[BlackElo "1724"]
[Annotator "NA RC"]
[PlyCount "65"]
[EventDate "2024.01.01"]
[EventType "swiss"]
[EventCountry "GER"]
[SourceTitle "playchess.com"]
[Source "ChessBase"]
[SourceQuality "1"]
[TimeControl "40/5400+30:1800+30"]

1. d4 {[%emt 0:00:05]} d5 {[%emt 0:00:07]} 2. Nf3 {[%emt 0:00:13]} Bf5 {[%emt 0:00:17]} 3. e3 {[%emt 0:01:23]} e6 {[%emt 0:00:22]} 4. c4 {[%emt 0:00:15]} Bb4+ {[%emt 0:00:28]} 5. Bd2 {[%emt 0:00:32]} Bxd2+ {[%emt 0:00:16]} 6. Qxd2 {[%emt 0:00:48]} Nf6 {[%emt 0:01:00]} 7. Qb4 {[%emt 0:01:55]} b6 {[%emt 0:04:57]} 8. Nc3 {[%emt 0:04:05]} Nbd7 {[%emt 0:08:22]} 9. cxd5 {[%emt 0:03:50]} exd5 {[%emt 0:00:30]} 10. Bb5 {[%emt 0:01:27]} Qe7 {[%emt 0:03:41]} 11. Qxe7+ {[%emt 0:03:19]} Kxe7 {[%emt 0:00:07]} 12. Bc6 {[%emt 0:00:26]} Rad8 {[%emt 0:02:55]} 13. Nxd5+ {[%emt 0:03:05]} Nxd5 {[%emt 0:00:16]} 14. Bxd5 {[%emt 0:00:11]} Nc5 {[%emt 0:04:57]} 15. Bc4 {[%emt 0:07:48]} Nd3+ {[%emt 0:03:53]} 16. Bxd3 {[%emt 0:00:33]} Bxd3 {[%emt 0:00:08]} 17. Ne5 {[%emt 0:00:36]} Be4 {[%emt 0:01:27]} 18. f3 {[%emt 0:01:26]} Bb7 {[%emt 0:00:28]} 19. Rc1 {[%emt 0:00:48]} Rc8 {[%emt 0:00:57]} 20. Nc6+ {[%emt 0:00:57]} Bxc6 {[%emt 0:01:34]} 21. Rxc6 {[%emt 0:00:13]} Kd7 {[%emt 0:03:23]} 22. d5 {[%emt 0:01:00]} Rhe8 {[%emt 0:00:31]} 23. Kf2 {[%emt 0:00:48]} Re5 {[%emt 0:01:04]} 24. e4 {[%emt 0:02:25]} f5 {[%emt 0:00:12]} 25. Ke3 {[%emt 0:06:15]} fxe4 {[%emt 0:00:34]} 26. Kd4 {[%emt 0:11:53]} Rce8 {[%emt 0:04:36]} 27. Rhc1 {[%emt 0:04:56]} e3 {[%emt 0:01:12]} 28. Rxc7+ {[%emt 0:01:26]} Kd8 {[%emt 0:00:07]} 29. Rxa7 {[%emt 0:03:35]} e2 {[%emt 0:03:57]} 30. Re1 {[%emt 0:05:17]} Rh5 {[%emt 0:07:00]} 31. Ra8+ {[%emt 0:01:33]} Kd7 {[%emt 0:00:21]} 32. Rxe8 {[%emt 0:00:08]} Kxe8 {[%emt 0:00:06]} 33. Rxe2+ {[%emt 0:00:08]} 1-0